bitfinex-derivatives/quotes_BTCF0:USTF0_20250315
["timestamp","ask_amount","ask_price","bid_price","bid_amount"]
[1742039669531,0.2146027,84163.0,84162.0,0.71313096]
[1742039669740,0.1818027,84163.0,84162.0,0.71313096]
[1742039669932,0.1818027,84163.0,84162.0,0.97313096]
[1742039670336,0.1818027,84163.0,84162.0,0.45313096]
[1742039670539,0.1495027,84163.0,84162.0,0.9598042]
[1742039670838,0.1495027,84163.0,84162.0,0.4398042]
[1742039671041,0.1495027,84163.0,84162.0,0.8998042]
[1742039671938,0.1495027,84163.0,84162.0,0.9698042]
[1742039672144,0.1495027,84163.0,84162.0,0.98312905]
[1742039672640,0.1495027,84163.0,84162.0,0.65312905]
[1742039672947,0.1495027,84163.0,84162.0,0.07432485]
[1742039673134,0.1821027,84163.0,84162.0,0.07432485]
[1742039673328,0.1821027,84163.0,84162.0,0.061]
[1742039673535,0.1821027,84163.0,84162.0,0.1798042]
[1742039674035,0.1821027,84163.0,84162.0,0.6298042]
[1742039674239,0.1821027,84163.0,84162.0,0.9298042]
[1742039674434,0.1821027,84163.0,84162.0,0.6998042]
[1742039674636,0.1821027,84163.0,84162.0,0.6598042]
[1742039674937,0.1821027,84163.0,84162.0,0.4298042]
[1742039675132,0.1821027,84163.0,84162.0,0.6198042]
[1742039675328,0.1821027,84163.0,84162.0,0.6998042]
[1742039675741,0.1821027,84163.0,84162.0,0.6798042]
[1742039675943,0.1821027,84163.0,84162.0,0.1798042]
[1742039676140,0.1821027,84163.0,84162.0,0.2898042]
[1742039676334,0.1821027,84163.0,84162.0,0.7498042]
[1742039676529,0.1821027,84163.0,84162.0,0.2898042]
[1742039676935,0.1821027,84163.0,84162.0,0.5298042]
[1742039677138,0.1821027,84163.0,84162.0,0.2898042]
[1742039677338,0.1821027,84163.0,84162.0,0.3998042]
[1742039677541,0.1821027,84163.0,84162.0,0.2898042]
[1742039678035,0.1821027,84163.0,84162.0,0.7698042]
[1742039678236,0.1821027,84163.0,84162.0,0.2898042]
[1742039680243,0.1821027,84163.0,84162.0,0.5198042]
[1742039680447,0.1821027,84163.0,84162.0,0.2898042]
[1742039680835,0.1821027,84163.0,84162.0,0.171]
[1742039681034,0.1821027,84163.0,84162.0,0.841]
[1742039681246,0.1821027,84163.0,84162.0,0.061]
[1742039681431,0.1821027,84163.0,84162.0,0.161]
[1742039681636,0.1821027,84163.0,84162.0,0.061]
[1742039681835,0.1821027,84163.0,84162.0,0.171]
[1742039682438,0.1821027,84163.0,84162.0,0.061]
[1742039682638,0.1821027,84163.0,84162.0,0.331]
[1742039683544,0.1821027,84163.0,84162.0,0.301]
[1742039683942,0.1821027,84163.0,84162.0,0.311]
[1742039684144,0.1821027,84163.0,84162.0,0.4298042]
[1742039684343,0.1821027,84163.0,84162.0,0.6898042]
[1742039684743,0.1821027,84163.0,84162.0,0.9498042]
[1742039685046,0.1808027,84163.0,84162.0,0.9498042]
[1742039685448,0.1495027,84163.0,84162.0,0.8898042]
[1742039686039,0.1495027,84163.0,84162.0,0.4298042]
[1742039686352,0.1495027,84163.0,84162.0,0.6798042]
[1742039686650,0.1808027,84163.0,84162.0,0.7098042]
[1742039686857,0.1808027,84163.0,84162.0,0.6598042]
[1742039688439,0.1808027,84163.0,84162.0,0.5398042]
[1742039688641,0.1808027,84163.0,84162.0,0.4298042]
[1742039688841,0.1808027,84163.0,84162.0,0.5298042]
[1742039689249,0.1808027,84163.0,84162.0,0.6798042]
[1742039689451,0.1495027,84163.0,84162.0,0.6798042]
[1742039689650,0.1495027,84163.0,84162.0,0.7798042]
[1742039689853,0.1495027,84163.0,84162.0,0.6798042]
[1742039691951,0.1495027,84163.0,84162.0,0.6898042]
[1742039692147,0.1495027,84163.0,84162.0,0.7198042]
[1742039692343,0.1822027,84163.0,84162.0,0.9398042]
[1742039692548,0.1822027,84163.0,84162.0,0.4298042]
[1742039693251,0.1822027,84163.0,84162.0,0.9498042]
[1742039693457,0.1822027,84163.0,84162.0,0.6798042]
[1742039694253,0.1822027,84163.0,84162.0,0.9198042]
[1742039694466,0.1822027,84163.0,84162.0,0.4298042]
[1742039694755,0.1822027,84163.0,84162.0,0.6998042]
[1742039694955,0.1495027,84163.0,84162.0,0.7098042]
[1742039697257,0.1797027,84163.0,84162.0,0.7098042]
[1742039698359,0.1797027,84163.0,84162.0,0.4298042]
[1742039699662,0.1495027,84163.0,84162.0,0.91723378]
[1742039699961,0.1495027,84163.0,84162.0,0.96723378]
[1742039700257,0.1188027,84163.0,84162.0,0.4298042]
[1742039701243,0.1188027,84163.0,84162.0,0.43723711]
[1742039701449,0.1511027,84163.0,84162.0,0.43723711]
[1742039702257,0.1511027,84163.0,84162.0,0.43723323]
[1742039703056,0.1511027,84163.0,84162.0,0.67723323]
[1742039703254,0.1511027,84163.0,84162.0,0.64723323]
[1742039703458,0.1511027,84163.0,84162.0,0.43723323]
[1742039703858,0.1511027,84163.0,84162.0,0.52723323]
[1742039704163,0.1511027,84163.0,84162.0,0.43723479]
[1742039704463,0.1511027,84163.0,84162.0,0.77723479]
[1742039704660,0.1511027,84163.0,84162.0,0.64723479]
[1742039704859,0.1511027,84163.0,84162.0,0.52723479]
[1742039705166,0.1188027,84163.0,84162.0,0.92723479]
[1742039705564,0.1188027,84163.0,84162.0,0.9198042]
[1742039706559,0.1188027,84163.0,84162.0,0.9598042]
[1742039706959,0.1188027,84163.0,84162.0,0.4298042]
[1742039707360,0.1519027,84163.0,84162.0,0.6398042]
[1742039707562,0.1519027,84163.0,84162.0,0.4298042]
[1742039707755,0.1519027,84163.0,84162.0,0.9198042]
[1742039708364,0.1519027,84163.0,84162.0,0.6398042]
[1742039708570,0.1519027,84163.0,84162.0,0.4298042]
[1742039709070,0.1519027,84163.0,84162.0,0.8798042]
[1742039709257,0.1519027,84163.0,84162.0,0.4298042]
[1742039709567,0.1519027,84163.0,84162.0,0.9498042]
[1742039709969,0.1519027,84163.0,84162.0,0.4298042]
[1742039711371,0.1851027,84163.0,84162.0,0.6698042]
[1742039711556,0.1851027,84163.0,84162.0,0.4298042]
[1742039714155,0.1851027,84163.0,84162.0,0.6798042]
[1742039714357,0.1851027,84163.0,84162.0,0.89723738]
[1742039714665,0.1851027,84163.0,84162.0,0.43723738]
[1742039714859,0.1851027,84163.0,84162.0,0.96723738]
[1742039715065,0.1851027,84163.0,84162.0,0.43723738]
[1742039716160,0.1851027,84163.0,84162.0,0.54723738]
[1742039716363,0.1851027,84163.0,84162.0,0.4298042]
[1742039717969,0.1851027,84163.0,84162.0,0.6798042]
[1742039718164,0.1851027,84163.0,84162.0,0.4298042]
[1742039718566,0.1851027,84163.0,84162.0,0.7998042]
[1742039718773,0.1851027,84163.0,84162.0,0.4298042]
[1742039719860,0.1851027,84163.0,84162.0,0.5298042]
[1742039720066,0.1851027,84163.0,84162.0,0.4298042]
[1742039721159,0.1851027,84163.0,84162.0,0.5298042]
[1742039721359,0.1851027,84163.0,84162.0,0.4298042]
[1742039722060,0.1851027,84163.0,84162.0,0.6798042]
[1742039722259,0.1851027,84163.0,84162.0,0.4298042]
[1742039722471,0.1851027,84163.0,84162.0,0.5198042]
[1742039722666,0.1851027,84163.0,84162.0,0.4298042]
[1742039722869,0.1851027,84163.0,84162.0,0.5298042]
[1742039723061,0.1851027,84163.0,84162.0,0.4298042]
[1742039724571,0.1851027,84163.0,84162.0,0.7898042]
[1742039724772,0.1851027,84163.0,84162.0,0.4298042]
[1742039725863,0.1851027,84163.0,84162.0,0.5398042]
[1742039726064,0.1851027,84163.0,84162.0,0.311]
[1742039727577,0.1851027,84163.0,84162.0,0.4298042]
[1742039731886,0.1851027,84163.0,84162.0,0.311]
[1742039732082,0.1851027,84163.0,84162.0,0.581]
[1742039734189,0.1851027,84163.0,84162.0,0.311]
[1742039734787,0.1188197,84151.0,84149.0,0.00017814]
[1742039735285,0.1188197,84151.0,84150.0,0.55280338]
[1742039735482,0.1501197,84151.0,84150.0,0.31350338]
[1742039735870,0.1501197,84151.0,84150.0,0.40350338]
[1742039736077,0.1830197,84151.0,84150.0,0.59650338]
[1742039736283,0.1830197,84151.0,84150.0,0.58820338]
[1742039736477,0.1949857,84151.0,84150.0,0.61120338]
[1742039736685,0.1949857,84151.0,84150.0,0.58050338]
[1742039736877,0.1949857,84151.0,84150.0,0.2777]
[1742039737385,0.1949857,84151.0,84150.0,0.226]
[1742039737570,0.296166,84151.0,84148.0,0.12765731]
[1742039737770,0.1188225,84149.0,84148.0,0.05633011]
[1742039738083,0.3888225,84149.0,84148.0,0.05633011]
[1742039738283,0.1188225,84149.0,84148.0,0.05633011]
[1742039738583,0.3788225,84149.0,84148.0,0.05633011]
[1742039738792,0.1188225,84149.0,84148.0,0.05733011]
[1742039739086,0.1218225,84149.0,84148.0,0.05733011]
[1742039739680,0.1248225,84149.0,84148.0,0.05633011]
[1742039740682,0.1188338,84141.0,84140.0,0.00017825]
[1742039740986,0.2321138,84141.0,84140.0,0.00017825]
[1742039741573,0.2950138,84141.0,84140.0,0.00017825]
[1742039741982,0.2960138,84141.0,84140.0,0.00017825]
[1742039742177,0.2980138,84141.0,84140.0,0.00017825]
[1742039742387,0.2980138,84141.0,84140.0,0.11017825]
[1742039742590,0.2980138,84141.0,84140.0,0.00017825]
[1742039743178,0.2980138,84141.0,84140.0,0.28017825]
[1742039743375,0.2980138,84141.0,84140.0,0.26017825]
[1742039744190,0.2980138,84141.0,84140.0,0.27017825]
[1742039744684,0.2980138,84141.0,84140.0,0.23017825]
[1742039744891,0.2980138,84141.0,84140.0,0.26267825]
[1742039745284,0.2980138,84141.0,84140.0,0.32267825]
[1742039745881,0.2980138,84141.0,84140.0,0.14267825]
[1742039746078,0.2980138,84141.0,84140.0,0.26267825]
[1742039747286,0.2980138,84141.0,84140.0,0.27267825]
[1742039748397,0.2980138,84141.0,84140.0,0.31267825]
[1742039749596,0.2980138,84141.0,84140.0,0.27267825]
[1742039749985,0.2980138,84141.0,84140.0,0.31267825]
[1742039750386,0.2980138,84141.0,84140.0,0.26267825]
[1742039750593,0.2980138,84141.0,84140.0,0.03267825]
[1742039750800,0.2980138,84141.0,84140.0,0.29267825]
[1742039751291,0.2980138,84141.0,84140.0,0.03267825]
[1742039751492,0.2980138,84141.0,84140.0,0.27267825]
[1742039752389,0.2980138,84141.0,84140.0,0.53267825]
[1742039752595,0.2980138,84141.0,84140.0,0.27267825]
[1742039752792,0.2980138,84141.0,84140.0,0.54267825]
[1742039752996,0.2980138,84141.0,84140.0,0.27267825]
[1742039753889,0.2980138,84141.0,84140.0,0.28267825]
[1742039754288,0.2980138,84141.0,84140.0,0.29267825]
[1742039756592,0.2980138,84141.0,84140.0,0.28267825]
[1742039757194,0.2980138,84141.0,84140.0,0.27267825]
[1742039757696,0.2980138,84141.0,84140.0,0.29267825]
[1742039758389,0.2980138,84141.0,84140.0,0.03267825]
[1742039758596,0.2980138,84141.0,84140.0,0.27267825]
[1742039758792,0.2980138,84141.0,84140.0,0.03267825]
[1742039759409,0.2980138,84141.0,84140.0,0.26267825]
[1742039760701,0.2980138,84141.0,84140.0,0.27267825]
[1742039760999,0.2980138,84141.0,84140.0,0.31267825]
[1742039761920,0.2980138,84141.0,84140.0,0.28267825]
[1742039762103,0.2980138,84141.0,84140.0,0.27267825]
[1742039762496,0.2980138,84141.0,84140.0,0.03267825]
[1742039763013,0.2980138,84141.0,84140.0,0.51267825]
[1742039763191,0.2980138,84141.0,84140.0,0.54267825]
[1742039763396,0.2980138,84141.0,84140.0,0.53267825]
[1742039763905,0.2980138,84141.0,84140.0,0.27267825]
[1742039764301,0.2980138,84141.0,84140.0,0.55267825]
[1742039764497,0.2980138,84141.0,84140.0,0.53267825]
[1742039765108,0.2980138,84141.0,84140.0,0.03267825]
[1742039765307,0.2980138,84141.0,84140.0,0.52267825]
[1742039765516,0.2980138,84141.0,84140.0,0.57267825]
[1742039765708,0.2980138,84141.0,84140.0,0.03267825]
[1742039765904,0.2980138,84141.0,84140.0,0.53267825]
[1742039766407,0.2980138,84141.0,84140.0,0.55267825]
[1742039766704,0.2980138,84141.0,84140.0,0.26267825]
[1742039766912,0.2980138,84141.0,84140.0,0.80267825]
[1742039767208,0.2980138,84141.0,84140.0,0.54267825]
[1742039767507,0.003,84141.0,84140.0,0.61151345]
[1742039767698,0.0594127,84147.0,84146.0,0.1188226]
[1742039767902,0.1726927,84147.0,84146.0,0.6588226]
[1742039768603,0.3509398,84147.0,84146.0,0.7182352]
[1742039768805,0.3539398,84147.0,84146.0,0.7382352]
[1742039769110,0.3569398,84147.0,84146.0,0.4482352]
[1742039769713,0.3569398,84147.0,84146.0,0.9782352]
[1742039769909,0.2436598,84147.0,84146.0,0.7082352]
[1742039770301,0.2436598,84147.0,84146.0,0.8082352]
[1742039770611,0.2436598,84147.0,84146.0,0.7082352]
[1742039771200,0.2436598,84147.0,84146.0,0.7282352]
[1742039772714,0.2436598,84147.0,84146.0,0.7182352]
[1742039772907,0.2436598,84147.0,84146.0,0.9682352]
[1742039773114,0.2436598,84147.0,84146.0,0.7182352]
[1742039773303,0.006,84147.0,84146.0,1.3190352]
[1742039773610,0.006,84147.0,84146.0,1.0790352]
[1742039773800,0.006,84147.0,84146.0,1.1690352]
[1742039774910,0.004,84147.0,84146.0,1.1690352]
[1742039775611,0.002,84147.0,84146.0,1.3290352]
[1742039775810,0.002,84147.0,84146.0,1.3590352]
[1742039776006,0.002,84147.0,84146.0,1.2690352]
[1742039776409,0.1208253,84147.0,84146.0,1.3290352]
[1742039777811,0.002,84147.0,84146.0,1.3290352]
[1742039778511,0.002,84147.0,84146.0,1.3390352]
[1742039778708,0.001,84147.0,84146.0,1.3390352]
[1742039779016,0.002,84147.0,84146.0,1.3390352]
[1742039779324,0.001,84147.0,84146.0,1.3390352]
[1742039779504,0.002,84147.0,84146.0,1.3390352]
[1742039779901,0.00017825,84157.0,84156.0,0.1188126]
[1742039780119,0.00017825,84157.0,84156.0,0.3688126]
[1742039780417,0.00017825,84157.0,84156.0,0.9648126]
[1742039780612,0.00017825,84157.0,84156.0,0.9848126]
[1742039780820,0.11898945,84157.0,84156.0,0.73914526]
[1742039781119,0.11898945,84157.0,84156.0,1.01914526]
[1742039781321,0.11898945,84157.0,84156.0,1.02914526]
[1742039781617,0.11898945,84157.0,84156.0,0.94914526]
[1742039782007,0.00017825,84157.0,84156.0,0.94914526]
[1742039782420,0.00217825,84157.0,84156.0,0.81914526]
[1742039782816,0.0308,84175.0,84167.0,0.1187971]
[1742039783115,0.4795957,84168.0,84167.0,0.3587971]
[1742039783322,0.49174744,84168.0,84167.0,0.5987971]
[1742039783511,0.49174744,84168.0,84167.0,0.5789971]
[1742039783709,0.49174744,84168.0,84167.0,0.5113971]
[1742039783909,0.4795957,84168.0,84167.0,0.5113971]
[1742039784109,0.4845957,84168.0,84167.0,0.5113971]
[1742039784313,0.4845957,84168.0,84167.0,0.7413971]
[1742039784515,0.4845957,84168.0,84167.0,0.5113971]
[1742039784714,0.4845957,84168.0,84167.0,0.4213971]
[1742039784918,0.4845957,84168.0,84167.0,0.9013971]
[1742039785121,0.4885957,84168.0,84167.0,0.9013971]
[1742039785418,0.4885957,84168.0,84167.0,0.6713971]
[1742039785619,0.4885957,84168.0,84167.0,0.9113971]
[1742039785807,0.4885957,84168.0,84167.0,0.6713971]
[1742039786011,0.4885957,84168.0,84167.0,0.4213971]
[1742039786208,0.4885957,84168.0,84167.0,0.6413971]
[1742039786431,0.5517957,84168.0,84167.0,0.2926]
[1742039786924,0.5517957,84168.0,84167.0,0.1]
[1742039787125,0.6111942,84168.0,84167.0,0.2187971]
[1742039787426,0.1187971,84167.0,84166.0,0.063]
[1742039787721,0.1491971,84167.0,84166.0,0.353]
[1742039787906,0.2105971,84167.0,84166.0,0.343]
[1742039788422,0.3238371,84167.0,84166.0,0.343]
[1742039788825,0.118807,84160.0,84159.0,0.00017825]
[1742039789411,0.180207,84160.0,84159.0,0.00017825]
[1742039789824,0.180207,84160.0,84159.0,0.11017825]
[1742039790027,0.180207,84160.0,84159.0,0.00017825]
[1742039790318,0.180207,84160.0,84159.0,0.11017825]
[1742039790520,0.180207,84160.0,84159.0,0.00017825]
[1742039790920,0.182207,84160.0,84159.0,0.00017825]
[1742039791129,0.182207,84160.0,84159.0,0.37978665]
[1742039791425,0.182207,84160.0,84159.0,0.41078665]
[1742039791426,0.184207,84160.0,84159.0,0.41078665]
[1742039791627,0.182207,84160.0,84159.0,0.41078665]
[1742039791935,0.186207,84160.0,84159.0,0.18078665]
[1742039792120,0.188207,84160.0,84159.0,0.18078665]
[1742039792428,0.188207,84160.0,84159.0,0.45078665]
[1742039793111,0.188207,84160.0,84159.0,0.34197825]
[1742039793317,0.188207,84160.0,84159.0,0.06197825]
[1742039793627,0.188207,84160.0,84159.0,0.30197825]
[1742039793828,0.188207,84160.0,84159.0,0.06197825]
[1742039794217,0.188207,84160.0,84159.0,0.41078665]
[1742039794421,0.188207,84160.0,84159.0,0.18078665]
[1742039794623,0.188207,84160.0,84159.0,0.47078665]
[1742039794820,0.188207,84160.0,84159.0,0.06197825]
[1742039795026,0.188207,84160.0,84159.0,0.42078665]
[1742039795219,0.188207,84160.0,84159.0,0.34197825]
[1742039795422,0.188207,84160.0,84159.0,0.33197825]
[1742039795620,0.188207,84160.0,84159.0,0.06197825]
[1742039795829,0.188207,84160.0,84159.0,0.00017825]
[1742039796022,0.188207,84160.0,84159.0,0.25017825]
[1742039796224,0.188207,84160.0,84159.0,0.00017825]
[1742039797420,0.188207,84160.0,84159.0,0.25017825]
[1742039799217,0.188207,84160.0,84159.0,0.52017825]
[1742039799528,0.188207,84160.0,84159.0,0.00017825]
[1742039799729,0.188207,84160.0,84159.0,0.09017825]
[1742039800631,0.188207,84160.0,84159.0,0.26017825]
[1742039800832,0.188207,84160.0,84159.0,0.24017825]
[1742039801327,0.188207,84160.0,84159.0,0.00017825]
[1742039801633,0.188207,84160.0,84159.0,0.23017825]
[1742039801822,0.188207,84160.0,84159.0,0.46017825]
[1742039802021,0.188207,84160.0,84159.0,0.23017825]
[1742039802921,0.188207,84160.0,84159.0,0.00017825]
[1742039803124,0.188207,84160.0,84159.0,0.28017825]
[1742039803336,0.188207,84160.0,84159.0,0.29017825]
[1742039803626,0.188207,84160.0,84159.0,0.00017825]
[1742039803832,0.188207,84160.0,84159.0,0.27017825]
[1742039804021,0.188207,84160.0,84159.0,0.00017825]
[1742039805132,0.301447,84160.0,84159.0,0.00017825]
[1742039805727,0.301447,84160.0,84159.0,0.26017825]
[1742039806034,0.301447,84160.0,84159.0,0.00017825]
[1742039806236,0.301447,84160.0,84159.0,0.10017825]
[1742039806423,0.301447,84160.0,84159.0,0.00017825]
[1742039807423,0.301447,84160.0,84159.0,0.27017825]
[1742039807733,0.301447,84160.0,84159.0,0.00017825]
[1742039808532,0.301447,84160.0,84159.0,0.10017825]
[1742039809234,0.301447,84160.0,84159.0,0.00017825]
[1742039809931,0.301447,84160.0,84159.0,0.03297825]
[1742039810633,0.301447,84160.0,84159.0,0.29297825]
[1742039811136,0.301447,84160.0,84159.0,0.27297825]
[1742039811720,0.301447,84160.0,84159.0,0.03297825]
[1742039811923,0.301447,84160.0,84159.0,0.31297825]
[1742039812321,0.301447,84160.0,84159.0,0.30297825]
[1742039812732,0.301447,84160.0,84159.0,0.03297825]
[1742039812928,0.301447,84160.0,84159.0,0.27297825]
[1742039813132,0.301447,84160.0,84159.0,0.26297825]
[1742039814740,0.301447,84160.0,84159.0,0.29297825]
[1742039815625,0.301447,84160.0,84159.0,0.03297825]
[1742039818335,0.301447,84160.0,84159.0,0.27297825]
[1742039818528,0.301447,84160.0,84159.0,0.03297825]
[1742039818723,0.301447,84160.0,84159.0,0.30297825]
[1742039818928,0.301447,84160.0,84159.0,0.03297825]
[1742039819525,0.301447,84160.0,84159.0,0.27297825]
[1742039819727,0.301447,84160.0,84159.0,0.03297825]
[1742039820532,0.301447,84160.0,84159.0,0.29297825]
[1742039821335,0.301447,84160.0,84159.0,0.26297825]
[1742039822145,0.301447,84160.0,84159.0,0.13297825]
[1742039822336,0.301447,84160.0,84159.0,0.29297825]
[1742039822531,0.301447,84160.0,84159.0,0.03297825]
[1742039822731,0.301447,84160.0,84159.0,0.14297825]
[1742039824248,0.301447,84160.0,84159.0,0.26297825]
[1742039824943,0.270547,84160.0,84159.0,0.03297825]
[1742039825147,0.270547,84160.0,84159.0,0.27297825]
[1742039825534,0.270547,84160.0,84159.0,0.53297825]
[1742039825735,0.270547,84160.0,84159.0,0.31297825]
[1742039826232,0.126807,84160.0,84159.0,0.40297825]
[1742039826447,0.240047,84160.0,84159.0,0.31297825]
[1742039826742,0.240047,84160.0,84159.0,0.27297825]
[1742039827348,0.240047,84160.0,84159.0,0.41297825]
[1742039827551,0.240047,84160.0,84159.0,0.25178665]
[1742039828235,0.239047,84160.0,84159.0,0.25178665]
[1742039828637,0.239047,84160.0,84159.0,0.40178665]
[1742039828849,0.239047,84160.0,84159.0,0.37178665]
[1742039829045,0.239047,84160.0,84159.0,0.40228665]
[1742039829845,0.125807,84160.0,84159.0,0.65228665]
[1742039830051,0.239047,84160.0,84159.0,0.65228665]
[1742039830247,0.236047,84160.0,84159.0,0.40228665]
[1742039830447,0.240047,84160.0,84159.0,0.42228665]
[1742039832249,0.240047,84160.0,84159.0,0.46228665]
[1742039832643,0.240047,84160.0,84159.0,0.18228665]
[1742039832951,0.240047,84160.0,84159.0,0.70228665]
[1742039833144,0.240047,84160.0,84159.0,0.34347825]
[1742039833343,0.240047,84160.0,84159.0,0.06347825]
[1742039833548,0.271447,84160.0,84159.0,0.06347825]
[1742039834347,0.271447,84160.0,84159.0,0.33347825]
[1742039834543,0.271447,84160.0,84159.0,0.18228665]
[1742039834745,0.271447,84160.0,84159.0,0.41228665]
[1742039834942,0.240047,84160.0,84159.0,0.41228665]
[1742039835551,0.272447,84160.0,84159.0,0.41228665]
[1742039835744,0.303547,84160.0,84159.0,0.06347825]
[1742039836352,0.303547,84160.0,84159.0,0.34347825]
[1742039836549,0.303547,84160.0,84159.0,0.06347825]
[1742039836750,0.303547,84160.0,84159.0,0.33347825]
[1742039837349,0.664347,84160.0,84159.0,0.06347825]
[1742039837546,0.664347,84160.0,84159.0,0.30347825]
[1742039838062,0.664347,84160.0,84159.0,0.06347825]
[1742039838443,0.664347,84160.0,84159.0,0.17347825]
[1742039838655,0.664347,84160.0,84159.0,0.06347825]
[1742039838853,0.664347,84160.0,84159.0,0.16347825]
[1742039839355,0.303547,84160.0,84159.0,0.06347825]
[1742039840148,0.664347,84160.0,84159.0,0.06347825]
[1742039841342,0.664347,84160.0,84159.0,0.18228665]
[1742039841650,0.664347,84160.0,84159.0,0.46228665]
[1742039841853,0.664347,84160.0,84159.0,0.18228665]
[1742039842159,0.664347,84160.0,84159.0,0.44228665]
[1742039842458,0.664347,84160.0,84159.0,0.18228665]
[1742039842659,0.664347,84160.0,84159.0,0.28228665]
[1742039842953,0.664347,84160.0,84159.0,0.18228665]
[1742039843155,0.551107,84160.0,84159.0,0.18228665]
[1742039843359,0.664347,84160.0,84159.0,0.18228665]
[1742039843944,0.664347,84160.0,84159.0,0.06347825]
[1742039844758,0.008,84160.0,84159.0,0.41228665]
[1742039845561,0.126807,84160.0,84159.0,0.41228665]
[1742039845952,0.126807,84160.0,84159.0,0.44448665]
[1742039846154,0.008,84160.0,84159.0,0.68448665]
[1742039846353,0.008,84160.0,84159.0,0.44448665]
[1742039846761,0.008,84160.0,84159.0,0.49448665]
[1742039847257,0.008,84160.0,84159.0,0.74448665]
[1742039847448,0.008,84160.0,84159.0,0.44448665]
[1742039847654,0.126807,84160.0,84159.0,0.44448665]
[1742039849562,0.008,84160.0,84159.0,0.44448665]
[1742039849960,0.126807,84160.0,84159.0,0.44448665]
[1742039850164,0.126807,84160.0,84159.0,0.54448665]
[1742039850364,0.008,84160.0,84159.0,0.70448665]
[1742039850566,0.008,84160.0,84159.0,0.59448665]
[1742039852350,0.008,84160.0,84159.0,0.44448665]
[1742039852555,0.126807,84160.0,84159.0,0.71448665]
[1742039852755,0.126807,84160.0,84159.0,0.44448665]
[1742039854659,0.126807,84160.0,84159.0,0.55448665]
[1742039854868,0.126807,84160.0,84159.0,0.44448665]
[1742039855365,0.126807,84160.0,84159.0,0.54448665]
[1742039855559,0.126807,84160.0,84159.0,0.44448665]
[1742039855960,0.008,84160.0,84159.0,0.72448665]
[1742039856166,0.008,84160.0,84159.0,0.49448665]
[1742039856373,0.008,84160.0,84159.0,0.44448665]
[1742039856962,0.008,84160.0,84159.0,0.54448665]
[1742039857270,0.29884826,84175.0,84159.0,1.07647825]
[1742039857473,0.27095446,84175.0,84174.0,0.1187872]
[1742039857664,0.30415446,84175.0,84174.0,0.5987872]
[1742039858164,0.30415446,84175.0,84174.0,0.6087872]
[1742039858363,0.30415446,84175.0,84174.0,0.6692872]
[1742039858564,0.27095446,84175.0,84174.0,0.6692872]
[1742039858769,0.27495446,84175.0,84174.0,0.6692872]
[1742039858967,0.0355,84175.0,84174.0,0.6692872]
[1742039859272,0.004,84175.0,84174.0,0.9592872]
[1742039859462,0.004,84175.0,84174.0,0.9492872]
[1742039859663,0.008,84175.0,84174.0,0.9392872]
[1742039859859,0.008,84175.0,84174.0,0.7392872]
[1742039860061,0.1267858,84175.0,84174.0,0.7392872]
[1742039860264,0.1267858,84175.0,84174.0,0.6692872]
[1742039860265,0.004,84175.0,84174.0,0.6692872]
[1742039860470,0.1247858,84175.0,84174.0,0.9092872]
[1742039860674,0.1267858,84175.0,84174.0,0.9092872]
[1742039861171,0.1267858,84175.0,84174.0,0.9292872]
[1742039861473,0.008,84175.0,84174.0,0.6692872]
[1742039861672,0.008,84175.0,84174.0,0.9192872]
[1742039862971,0.008,84175.0,84174.0,0.8692872]
[1742039863565,0.1267858,84175.0,84174.0,0.96104947]
[1742039863766,0.1267858,84175.0,84174.0,0.6692872]
[1742039863969,0.1883858,84175.0,84174.0,0.6692872]
[1742039864364,0.1883858,84175.0,84174.0,0.4192872]
[1742039864677,0.1883858,84175.0,84174.0,0.6892872]
[1742039865065,0.1883858,84175.0,84174.0,0.6692872]
[1742039865976,0.1883858,84175.0,84174.0,0.4192872]
[1742039866178,0.1883858,84175.0,84174.0,0.6692872]
[1742039866477,0.1883858,84175.0,84174.0,0.1792872]
[1742039866678,0.1883858,84175.0,84174.0,0.2792872]
[1742039866869,0.1883858,84175.0,84174.0,0.1792872]
[1742039867070,0.5491858,84175.0,84174.0,0.0605]
[1742039867266,0.1187929,84170.0,84169.0,0.2375872]
[1742039867467,0.1187929,84170.0,84169.0,0.1987935]
[1742039867673,0.1827929,84170.0,84169.0,0.08]
[1742039868173,0.1827929,84170.0,84169.0,0.36]
[1742039868474,0.1877929,84170.0,84169.0,0.08]
[1742039868680,0.1897929,84170.0,84169.0,0.1987943]
[1742039868975,0.1897929,84170.0,84169.0,0.2612943]
[1742039873470,0.1897929,84170.0,84169.0,0.1812943]
[1742039873876,0.1897929,84170.0,84169.0,0.2912943]
[1742039874086,0.1897929,84170.0,84169.0,0.1812943]
[1742039875377,0.1897929,84170.0,84169.0,0.2812943]
[1742039875686,0.1897929,84170.0,84169.0,0.1625]
[1742039875875,0.1897929,84170.0,84169.0,0.0625]
[1742039876071,0.1782077,84163.0,84160.0,0.0897028]
[1742039876275,0.0638,84162.0,84161.0,0.0329]
[1742039876782,0.0638,84162.0,84161.0,0.1329]
[1742039877175,0.0638,84162.0,84161.0,0.0329]
[1742039877375,0.0638,84162.0,84161.0,0.3452]
[1742039877588,0.2420063,84162.0,84161.0,0.3452]
[1742039877778,0.2420063,84162.0,84161.0,0.2952]
[1742039878993,0.2440063,84162.0,84161.0,0.2952]
[1742039879179,0.2480063,84162.0,84161.0,0.2952]
[1742039879575,0.2480063,84162.0,84161.0,0.3052]
[1742039879789,0.25965657,84162.0,84161.0,0.3052]
[1742039880086,0.25965657,84162.0,84161.0,0.3252]
[1742039880386,0.0371,84162.0,84161.0,0.4440056]
[1742039880578,0.006,84162.0,84161.0,0.8940056]
[1742039880881,0.006,84162.0,84161.0,0.7140056]
[1742039881387,0.1248042,84162.0,84161.0,0.7140056]
[1742039881890,0.1238042,84162.0,84161.0,0.9540056]
[1742039882388,0.1238042,84162.0,84161.0,0.5340056]
[1742039883087,0.1238042,84162.0,84161.0,0.6940056]
[1742039883272,0.005,84162.0,84161.0,0.8040056]
[1742039883588,0.005,84162.0,84161.0,0.6940056]
[1742039884287,0.005,84162.0,84161.0,0.7940056]
[1742039884491,0.1238042,84162.0,84161.0,0.6940056]
[1742039886079,0.1238042,84162.0,84161.0,0.9340056]
[1742039886387,0.1238042,84162.0,84161.0,0.6940056]
[1742039887186,0.1238042,84162.0,84161.0,0.7240056]
[1742039887384,0.1238042,84162.0,84161.0,0.8340056]
[1742039887582,0.1238042,84162.0,84161.0,0.7240056]
[1742039887887,0.1238042,84162.0,84161.0,0.4440056]
[1742039888086,0.1538042,84162.0,84161.0,0.6940056]
[1742039888392,0.1538042,84162.0,84161.0,0.4440056]
[1742039888780,0.1538042,84162.0,84161.0,0.7140056]
[1742039889186,0.1538042,84162.0,84161.0,0.4340056]
[1742039889379,0.1538042,84162.0,84161.0,1.0040056]